[Event "Goteborg Open 2024"]
[Site "Goteborgs Schackcentrum, Vegatan 20, Gothenburg, Sweden"]
[Date "2024.08.02"]
[Round "1.10"]
[White "Harila, Per"]
[Black "Dahlin, Emil 2013"]
[Result "1-0"]
[TimeControl "15 minutes + 5 seconds per move from move one (Round 1 - 4) / 90 minutes + 30 seconds per move from move one (Round 5 - 8)"]
[WhiteElo "1947"]
[BlackElo "1719"]

1. d4 {[%clk 00:15:05]} {[%emt 00:00:05]} f5 {[%clk 00:15:13]} {[%emt
00:00:03]} 2. Nf3 {[%clk 00:15:05]} {[%emt 00:00:05]} Nf6 {[%clk 00:15:15]}
{[%emt 00:00:03]} 3. g3 {[%clk 00:15:08]} {[%emt 00:00:02]} g6 {[%clk
00:15:19]} {[%emt 00:00:01]} 4. Bg2 {[%clk 00:15:12]} Bg7 {[%clk 00:15:20]}
{[%emt 00:00:03]} 5. O-O {[%clk 00:15:14]} {[%emt 00:00:03]} d6 {[%clk
00:15:23]} {[%emt 00:00:04]} 6. c3 {[%clk 00:15:13]} {[%emt 00:00:05]} O-O
{[%clk 00:15:25]} {[%emt 00:00:03]} 7. Qb3+ {[%clk 00:15:15]} {[%emt 00:00:01]}
Kh8 {[%clk 00:15:18]} {[%emt 00:00:13]} 8. Ng5 {[%clk 00:15:17]} {[%emt
00:00:02]} d5 {[%clk 00:14:29]} {[%emt 00:00:54]} 9. Nd2 {[%clk 00:15:20]}
{[%emt 00:00:03]} c6 {[%clk 00:13:55]} {[%emt 00:00:40]} 10. Ndf3 {[%clk
00:15:23]} {[%emt 00:00:01]} h6 {[%clk 00:13:37]} {[%emt 00:00:23]} 11. Nh3
{[%clk 00:15:25]} {[%emt 00:00:02]} Nbd7 {[%clk 00:12:28]} {[%emt 00:01:15]} 12.
Nf4 {[%clk 00:15:28]} {[%emt 00:00:01]} Qe8 {[%clk 00:12:15]} {[%emt 00:00:19]}
13. Ne6 {[%clk 00:15:28]} {[%emt 00:00:05]} g5 {[%clk 00:11:09]} {[%emt
00:01:11]} 14. Nc7 {[%clk 00:15:01]} {[%emt 00:00:32]} Qh5 {[%clk 00:11:02]}
{[%emt 00:00:11]} 15. Nxa8 {[%clk 00:15:02]} {[%emt 00:00:05]} Ng4 {[%clk
00:09:10]} {[%emt 00:01:57]} 16. h3 {[%clk 00:14:42]} {[%emt 00:00:25]} Ngf6
{[%clk 00:09:13]} {[%emt 00:00:02]} 17. Nc7 {[%clk 00:14:42]} {[%emt 00:00:05]}
g4 {[%clk 00:09:15]} {[%emt 00:00:02]} 18. Ne5 {[%clk 00:14:20]} {[%emt
00:00:28]} gxh3 {[%clk 00:07:47]} {[%emt 00:01:34]} 19. Bf3 {[%clk 00:14:23]}
Ng4 {[%clk 00:07:45]} {[%emt 00:00:07]} 20. Ne6 {[%clk 00:13:56]} {[%emt
00:00:33]} Ndxe5 {[%clk 00:07:12]} {[%emt 00:00:38]} 21. Nxg7 {[%clk 00:13:40]}
{[%emt 00:00:20]} Nxf3+ {[%clk 00:05:55]} {[%emt 00:01:23]} 22. exf3 {[%clk
00:13:43]} {[%emt 00:00:03]} h2+ {[%clk 00:05:53]} {[%emt 00:00:07]} 23. Kh1
{[%clk 00:13:44]} {[%emt 00:00:03]} Qh3 {[%clk 00:05:33]} {[%emt 00:00:24]} 24.
Bf4 {[%clk 00:12:59]} {[%emt 00:00:51]} Kxg7 {[%clk 00:03:52]} {[%emt
00:01:46]} 25. c4 {[%clk 00:12:38]} {[%emt 00:00:26]} Nf6 {[%clk 00:03:21]}
{[%emt 00:00:36]} 26. Rfe1 {[%clk 00:12:08]} {[%emt 00:00:34]} e6 {[%clk
00:03:09]} {[%emt 00:00:17]} 27. cxd5 {[%clk 00:11:17]} {[%emt 00:00:57]} Nxd5
{[%clk 00:03:13]} {[%emt 00:00:02]} 28. Be5+ {[%clk 00:10:56]} {[%emt
00:00:23]} Kh7 {[%clk 00:03:13]} {[%emt 00:00:06]} 29. Qa3 {[%clk 00:10:25]}
{[%emt 00:00:37]} Rg8 {[%clk 00:03:09]} {[%emt 00:00:09]} 30. Rg1 {[%clk
00:09:51]} {[%emt 00:00:39]} hxg1=Q+ {[%clk 00:03:04]} {[%emt 00:00:10]} 31.
Kxg1 {[%clk 00:09:54]} {[%emt 00:00:01]} f4 {[%clk 00:02:21]} {[%emt 00:00:48]}
32. Qd3+ {[%clk 00:09:55]} {[%emt 00:00:04]} Qf5 {[%clk 00:02:20]} {[%emt
00:00:06]} 33. Qb3 {[%clk 00:09:28]} {[%emt 00:00:33]} fxg3 {[%clk 00:02:16]}
{[%emt 00:00:09]} 34. Bxg3 {[%clk 00:09:31]} {[%emt 00:00:01]} Nf4 {[%clk
00:01:51]} {[%emt 00:00:29]} 35. Qe3 {[%clk 00:08:55]} {[%emt 00:00:43]} Nh3+
{[%clk 00:01:05]} {[%emt 00:00:51]} 36. Kg2 {[%clk 00:08:44]} {[%emt 00:00:16]}
Nf4+ {[%clk 00:01:07]} {[%emt 00:00:03]} 37. Kg1 {[%clk 00:08:42]} {[%emt
00:00:07]} Nd5 {[%clk 00:01:08]} {[%emt 00:00:05]} 38. Qb3 {[%clk 00:08:37]}
{[%emt 00:00:09]} h5 {[%clk 00:01:00]} {[%emt 00:00:13]} 39. Kf1 {[%clk
00:08:36]} {[%emt 00:00:06]} h4 {[%clk 00:00:57]} {[%emt 00:00:09]} 40. Be5
{[%clk 00:08:34]} {[%emt 00:00:05]} Qh3+ {[%clk 00:00:45]} {[%emt 00:00:17]} 41.
Ke2 {[%clk 00:08:37]} {[%emt 00:00:02]} Qf5 {[%clk 00:00:46]} {[%emt 00:00:06]}
42. Rh1 {[%clk 00:08:22]} {[%emt 00:00:19]} h3 {[%clk 00:00:49]} {[%emt
00:00:02]} 43. f4 {[%clk 00:08:25]} {[%emt 00:00:02]} Qg4+ {[%clk 00:00:34]}
{[%emt 00:00:20]} 44. Ke1 {[%clk 00:08:20]} {[%emt 00:00:10]} h2 {[%clk
00:00:33]} {[%emt 00:00:05]} 45. Kd2 {[%clk 00:08:00]} {[%emt 00:00:26]} Qg2
{[%clk 00:00:28]} {[%emt 00:00:10]} 46. Qd3+ {[%clk 00:07:53]} {[%emt
00:00:12]} Kh6 {[%clk 00:00:24]} {[%emt 00:00:08]} 47. Ke2 {[%clk 00:07:38]}
{[%emt 00:00:21]} Qxh1 {[%clk 00:00:26]} {[%emt 00:00:03]} 48. Qh3+ {[%clk
00:07:41]} Kg6 {[%clk 00:00:30]} {[%emt 00:00:02]} 49. Qg4+ {[%clk 00:07:40]}
{[%emt 00:00:05]} Kf7 {[%clk 00:00:34]} {[%emt 00:00:01]} 50. Qh5+ {[%clk
00:07:44]} {[%emt 00:00:02]} Kf8 {[%clk 00:00:29]} {[%emt 00:00:05]} 51. Qh6+
{[%clk 00:07:43]} {[%emt 00:00:09]} Ke8 {[%clk 00:00:30]} {[%emt 00:00:05]} 52.
Qh5+ {[%clk 00:07:45]} {[%emt 00:00:03]} Kd8 {[%clk 00:00:30]} {[%emt
00:00:03]} 53. Qh7 {[%clk 00:07:39]} {[%emt 00:00:13]} Qe1+ {[%clk 00:00:06]}
{[%emt 00:00:29]} 54. Kxe1 {[%clk 00:07:42]} {[%emt 00:00:02]} Rg1+ {[%clk
00:00:10]} {[%emt 00:00:01]} 55. Ke2 {[%clk 00:07:45]} {[%emt 00:00:02]} h1=Q
{[%clk 00:00:14]} {[%emt 00:00:02]} 56. Qf7 {[%clk 00:07:26]} {[%emt 00:00:24]}
Re1+ {[%clk 00:00:17]} {[%emt 00:00:02]} 57. Kd2 {[%clk 00:07:30]} {[%emt
00:00:01]} Rd1+ {[%clk 00:00:20]} {[%emt 00:00:01]} 58. Kc2 {[%clk 00:07:33]}
Rc1+ {[%clk 00:00:24]} {[%emt 00:00:02]} 59. Kb3 {[%clk 00:07:33]} {[%emt
00:00:05]} Qd1+ {[%clk 00:00:27]} {[%emt 00:00:02]} 60. Ka3 {[%clk 00:07:34]}
{[%emt 00:00:04]} Qd3+ {[%clk 00:00:23]} {[%emt 00:00:08]} 61. b3 {[%clk
00:07:36]} {[%emt 00:00:05]} Qa6+ {[%clk 00:00:15]} {[%emt 00:00:12]} 62. Kb2
{[%clk 00:07:39]} {[%emt 00:00:01]} Rc2+ {[%clk 00:00:07]} {[%emt 00:00:14]} 63.
Kxc2 {[%clk 00:07:27]} {[%emt 00:00:17]} Qxa2+ {[%clk 00:00:10]} {[%emt
00:00:02]} 64. Kc1 {[%clk 00:07:28]} {[%emt 00:00:03]} Qa3+ {[%clk 00:00:11]}
{[%emt 00:00:04]} 65. Kd2 {[%clk 00:07:22]} {[%emt 00:00:12]} Qb2+ {[%clk
00:00:12]} {[%emt 00:00:04]} 66. Ke1 {[%clk 00:07:22]} {[%emt 00:00:04]} Qc1+
{[%clk 00:00:16]} {[%emt 00:00:02]} 67. Ke2 {[%clk 00:07:26]} {[%emt 00:00:01]}
Qc2+ {[%clk 00:00:19]} {[%emt 00:00:03]} 68. Kf1 {[%clk 00:07:30]} Qd1+ {[%clk
00:00:21]} {[%emt 00:00:03]} 69. Kg2 {[%clk 00:07:32]} {[%emt 00:00:03]} Qg4+
{[%clk 00:00:25]} {[%emt 00:00:01]} 70. Kf1 {[%clk 00:07:36]} {[%emt 00:00:01]}
Qh3+ {[%clk 00:00:21]} {[%emt 00:00:08]} 71. Ke1 {[%clk 00:07:34]} {[%emt
00:00:08]} Qh1+ {[%clk 00:00:23]} {[%emt 00:00:03]} 72. Ke2 {[%clk 00:07:36]}
{[%emt 00:00:04]} Qe4+ {[%clk 00:00:26]} {[%emt 00:00:02]} 73. Kf1 {[%clk
00:07:40]} {[%emt 00:00:01]} Qd3+ {[%clk 00:00:24]} {[%emt 00:00:05]} 74. Kg1
{[%clk 00:07:43]} {[%emt 00:00:03]} Qd1+ {[%clk 00:00:24]} {[%emt 00:00:05]} 75.
Kg2 {[%clk 00:07:46]} {[%emt 00:00:01]} Qg4+ {[%clk 00:00:28]} {[%emt
00:00:02]} 76. Kf1 {[%clk 00:07:50]} {[%emt 00:00:01]} Qh3+ {[%clk 00:00:15]}
{[%emt 00:00:18]} 77. Ke2 {[%clk 00:07:54]} {[%emt 00:00:01]} Nc3+ {[%clk
00:00:16]} {[%emt 00:00:04]} 78. Ke1 {[%clk 00:07:46]} {[%emt 00:00:13]} Qh1+
{[%clk 00:00:15]} {[%emt 00:00:06]} 79. Kd2 {[%clk 00:07:49]} {[%emt 00:00:01]}
Ne4+ {[%clk 00:00:19]} {[%emt 00:00:02]} 80. Ke2 {[%clk 00:07:49]} {[%emt
00:00:04]} Nc3+ {[%clk 00:00:14]} {[%emt 00:00:11]} 81. Kd2 {[%clk 00:07:52]}
{[%emt 00:00:01]} Nb1+ {[%clk 00:00:17]} {[%emt 00:00:02]} 82. Kc2 {[%clk
00:07:36]} {[%emt 00:00:22]} Na3+ {[%clk 00:00:20]} {[%emt 00:00:02]} 83. Kb2
{[%clk 00:07:37]} {[%emt 00:00:03]} Qb1+ {[%clk 00:00:07]} {[%emt 00:00:18]} 84.
Kxa3 {[%clk 00:07:39]} {[%emt 00:00:03]} Qa1+ {[%clk 00:00:10]} {[%emt
00:00:02]} 85. Kb4 {[%clk 00:07:40]} {[%emt 00:00:03]} a5+ {[%clk 00:00:13]}
{[%emt 00:00:03]} 86. Kc5 {[%clk 00:04:15]} {[%emt 00:03:31]} Qc3+ {[%clk
00:00:13]} {[%emt 00:00:04]} 87. Kb6 {[%clk 00:04:18]} {[%emt 00:00:02]} Qxb3+
{[%clk 00:00:08]} {[%emt 00:00:10]} 88. Ka7 {[%clk 00:04:21]} {[%emt 00:00:02]}
Qb4 {[%clk 00:00:06]} {[%emt 00:00:07]} 89. Bf6+ {[%clk 00:04:13]} {[%emt
00:00:12]} Qe7 {[%clk 00:00:08]} {[%emt 00:00:03]} 90. Qxe7+ {[%clk 00:04:16]}
{[%emt 00:00:02]} 1-0

[ePGN "0.1;DGT LiveChess/2.2.6"]

[Event "Goteborg Open 2024"]
[Site "Goteborgs Schackcentrum, Vegatan 20, Gothenburg, Sweden"]
[Date "2024.08.02"]
[Round "1.11"]
[White "Bergdahl, Martin"]
[Black "Green, David 2010"]
[Result "0-1"]
[TimeControl "15 minutes + 5 seconds per move from move one (Round 1 - 4) / 90 minutes + 30 seconds per move from move one (Round 5 - 8)"]
[WhiteElo "1711"]
[BlackElo "1946"]

1. e4 {[%clk 00:15:08]} {[%emt 00:00:01]} c5 {[%clk 00:15:05]} {[%emt
00:00:05]} 2. Nf3 {[%clk 00:15:11]} {[%emt 00:00:03]} e6 {[%clk 00:15:06]}
{[%emt 00:00:03]} 3. d4 {[%clk 00:15:15]} cxd4 {[%clk 00:15:10]} {[%emt
00:00:01]} 4. Nxd4 {[%clk 00:15:19]} {[%emt 00:00:02]} Nf6 {[%clk 00:15:10]}
{[%emt 00:00:04]} 5. Nc3 {[%clk 00:15:22]} {[%emt 00:00:04]} Nc6 {[%clk
00:15:10]} {[%emt 00:00:04]} 6. Be3 {[%clk 00:15:19]} {[%emt 00:00:08]} Bb4
{[%clk 00:15:13]} {[%emt 00:00:02]} 7. Bd3 {[%clk 00:15:08]} {[%emt 00:00:17]}
d5 {[%clk 00:14:44]} {[%emt 00:00:33]} 8. Nxc6 {[%clk 00:14:26]} {[%emt
00:00:46]} bxc6 {[%clk 00:14:39]} {[%emt 00:00:10]} 9. e5 {[%clk 00:14:30]}
{[%emt 00:00:01]} Nd7 {[%clk 00:13:03]} {[%emt 00:01:42]} 10. Qg4 {[%clk
00:14:17]} {[%emt 00:00:18]} Bxc3+ {[%clk 00:11:28]} {[%emt 00:01:40]} 11. bxc3
{[%clk 00:14:20]} g6 {[%clk 00:09:01]} {[%emt 00:02:32]} 12. O-O {[%clk
00:13:23]} {[%emt 00:01:02]} Nxe5 {[%clk 00:05:46]} {[%emt 00:03:20]} 13. Qd4
{[%clk 00:13:05]} {[%emt 00:00:23]} Qf6 {[%clk 00:05:24]} {[%emt 00:00:27]} 14.
Qc5 {[%clk 00:12:27]} {[%emt 00:00:43]} Qe7 {[%clk 00:03:54]} {[%emt 00:01:36]}
15. Qd4 {[%clk 00:11:14]} {[%emt 00:01:18]} Qf6 {[%clk 00:03:55]} {[%emt
00:00:03]} 16. Qc5 {[%clk 00:11:15]} {[%emt 00:00:04]} Bd7 {[%clk 00:00:56]}
{[%emt 00:03:05]} 17. Qd6 {[%clk 00:09:57]} {[%emt 00:01:22]} Nxd3 {[%clk
00:00:27]} {[%emt 00:00:34]} 18. cxd3 {[%clk 00:09:54]} {[%emt 00:00:08]} Qe7
{[%clk 00:00:17]} {[%emt 00:00:16]} 19. Bc5 {[%clk 00:08:13]} {[%emt 00:01:45]}
Qxd6 {[%clk 00:00:20]} {[%emt 00:00:02]} 20. Bxd6 {[%clk 00:08:17]} {[%emt
00:00:01]} f6 {[%clk 00:00:21]} {[%emt 00:00:06]} 21. Rab1 {[%clk 00:08:15]}
{[%emt 00:00:07]} Kf7 {[%clk 00:00:08]} {[%emt 00:00:18]} 22. Rb7 {[%clk
00:08:11]} {[%emt 00:00:08]} Rhd8 {[%clk 00:00:12]} {[%emt 00:00:01]} 23. Bc7
{[%clk 00:08:07]} {[%emt 00:00:09]} Rdc8 {[%clk 00:00:16]} {[%emt 00:00:01]} 24.
Bd6 {[%clk 00:08:11]} {[%emt 00:00:01]} Ke8 {[%clk 00:00:20]} {[%emt 00:00:01]}
25. Re1 {[%clk 00:08:06]} {[%emt 00:00:10]} Kd8 {[%clk 00:00:10]} {[%emt
00:00:15]} 26. Bc5 {[%clk 00:07:55]} {[%emt 00:00:16]} a6 {[%clk 00:00:07]}
{[%emt 00:00:08]} 27. Bb6+ {[%clk 00:07:51]} {[%emt 00:00:09]} Ke8 {[%clk
00:00:10]} 28. Bc5 {[%clk 00:07:52]} {[%emt 00:00:05]} Rcb8 {[%clk 00:00:09]}
{[%emt 00:00:07]} 29. Reb1 {[%clk 00:07:46]} {[%emt 00:00:10]} Rxb7 {[%emt
00:00:09]} 30. Rxb7 {[%clk 00:07:48]} {[%emt 00:00:02]} Kd8 {[%clk 00:00:09]}
{[%emt 00:00:02]} 31. Bb6+ {[%clk 00:07:44]} {[%emt 00:00:09]} Ke8 {[%clk
00:00:08]} {[%emt 00:00:05]} 32. Bc5 {[%clk 00:07:47]} {[%emt 00:00:04]} Kd8
{[%clk 00:00:09]} {[%emt 00:00:03]} 33. Bb6+ {[%clk 00:07:50]} {[%emt
00:00:01]} Ke8 {[%clk 00:00:14]} 34. Bc5 {[%clk 00:07:54]} Bc8 {[%clk
00:00:08]} {[%emt 00:00:10]} 35. Rxh7 {[%clk 00:07:57]} {[%emt 00:00:03]} e5
{[%clk 00:00:08]} {[%emt 00:00:06]} 36. Be7 {[%clk 00:07:19]} {[%emt 00:00:41]}
Rb8 {[%clk 00:00:06]} {[%emt 00:00:07]} 37. h3 {[%clk 00:07:21]} {[%emt
00:00:03]} Rb1+ {[%clk 00:00:08]} {[%emt 00:00:04]} 38. Kh2 {[%clk 00:07:25]}
{[%emt 00:00:01]} Rb2 {[%clk 00:00:11]} {[%emt 00:00:03]} 39. Bxf6 {[%clk
00:07:11]} {[%emt 00:00:18]} Rxf2 {[%clk 00:00:10]} {[%emt 00:00:06]} 40. Bxe5
{[%clk 00:07:14]} {[%emt 00:00:02]} Rxa2 {[%clk 00:00:10]} {[%emt 00:00:05]} 41.
Rc7 {[%clk 00:07:07]} {[%emt 00:00:12]} Bf5 {[%clk 00:00:08]} {[%emt 00:00:07]}
42. Rxc6 {[%clk 00:06:26]} {[%emt 00:00:46]} Bxd3 {[%clk 00:00:11]} {[%emt
00:00:01]} 43. Re6+ {[%clk 00:06:19]} {[%emt 00:00:11]} Kf7 {[%clk 00:00:12]}
{[%emt 00:00:01]} 44. Rf6+ {[%clk 00:06:16]} {[%emt 00:00:11]} Ke7 {[%clk
00:00:16]} {[%emt 00:00:01]} 45. Rf3 {[%clk 00:06:14]} {[%emt 00:00:08]} Be4
{[%clk 00:00:19]} {[%emt 00:00:02]} 46. Rg3 {[%clk 00:06:15]} {[%emt 00:00:03]}
Ke6 {[%clk 00:00:21]} {[%emt 00:00:03]} 47. Bd4 {[%clk 00:06:17]} {[%emt
00:00:04]} a5 {[%clk 00:00:10]} {[%emt 00:00:17]} 48. Rg4 {[%clk 00:06:13]}
{[%emt 00:00:08]} a4 {[%clk 00:00:08]} {[%emt 00:00:07]} 49. Bc5 {[%clk
00:06:03]} {[%emt 00:00:16]} Kf5 {[%clk 00:00:08]} {[%emt 00:00:04]} 50. Rg3
{[%clk 00:05:45]} {[%emt 00:00:24]} a3 {[%clk 00:00:09]} {[%emt 00:00:03]} 51.
c4 {[%clk 00:05:45]} {[%emt 00:00:04]} dxc4 {[%clk 00:00:07]} {[%emt 00:00:08]}
52. Bxa3 {[%clk 00:05:49]} {[%emt 00:00:01]} c3 {[%clk 00:00:06]} {[%emt
00:00:06]} 53. Rxc3 {[%clk 00:05:52]} {[%emt 00:00:02]} Rxg2+ {[%clk 00:00:10]}
{[%emt 00:00:01]} 54. Kh1 {[%clk 00:05:47]} {[%emt 00:00:10]} Rc2+ {[%clk
00:00:13]} {[%emt 00:00:01]} 55. Kg1 {[%clk 00:05:51]} {[%emt 00:00:01]} Rxc3
{[%clk 00:00:17]} {[%emt 00:00:02]} 56. Bb4 {[%clk 00:05:53]} {[%emt 00:00:04]}
Rxh3 {[%clk 00:00:18]} {[%emt 00:00:03]} 57. Kf2 {[%clk 00:05:58]} {[%emt
00:00:01]} Rb3 {[%clk 00:00:21]} {[%emt 00:00:02]} 58. Bd2 {[%clk 00:06:02]}
Rb7 {[%clk 00:00:24]} {[%emt 00:00:01]} 59. Ke3 {[%clk 00:06:06]} {[%emt
00:00:01]} Rd7 {[%clk 00:00:28]} {[%emt 00:00:01]} 60. Be1 {[%clk 00:06:07]}
{[%emt 00:00:04]} g5 {[%clk 00:00:32]} {[%emt 00:00:01]} 61. Bb4 {[%clk
00:06:08]} {[%emt 00:00:04]} Rd3+ {[%clk 00:00:34]} {[%emt 00:00:02]} 62. Ke2
{[%clk 00:06:13]} Rd7 {[%clk 00:00:38]} {[%emt 00:00:02]} 63. Bd2 {[%clk
00:06:16]} {[%emt 00:00:02]} Rxd2+ {[%clk 00:00:42]} {[%emt 00:00:02]} 64. Kxd2
{[%clk 00:06:20]} Kf4 {[%clk 00:00:45]} {[%emt 00:00:02]} 65. Ke2 {[%clk
00:06:24]} {[%emt 00:00:01]} Kg3 {[%clk 00:00:49]} {[%emt 00:00:01]} 66. Kf1
{[%clk 00:06:28]} Kh2 {[%clk 00:00:53]} 67. Kf2 {[%clk 00:06:33]} g4 {[%clk
00:00:57]} {[%emt 00:00:02]} 68. Kf1 {[%clk 00:06:37]} g3 {[%clk 00:01:00]}
{[%emt 00:00:03]} 69. Ke2 {[%clk 00:06:41]} g2 {[%clk 00:01:04]} 70. Ke3 {[%clk
00:06:45]} {[%emt 00:00:01]} g1=Q+ {[%clk 00:01:07]} {[%emt 00:00:03]} 71. Kxe4
{[%clk 00:06:49]} Qf2 {[%clk 00:01:10]} {[%emt 00:00:02]} 72. Ke5 {[%clk
00:06:51]} {[%emt 00:00:03]} Qf3 {[%clk 00:01:14]} {[%emt 00:00:01]} 73. Kd4
{[%clk 00:06:55]} Kg3 {[%clk 00:01:16]} {[%emt 00:00:02]} 74. Ke5 {[%clk
00:06:59]} {[%emt 00:00:01]} Qf4+ {[%clk 00:01:20]} {[%emt 00:00:03]} 0-1

[ePGN "0.1;DGT LiveChess/2.2.6"]

[Event "Goteborg Open 2024"]
[Site "Goteborgs Schackcentrum, Vegatan 20, Gothenburg, Sweden"]
[Date "2024.08.02"]
[Round "1.12"]
[White "Helin, Mikael"]
[Black "Bergdahl, Daniel"]
[Result "1/2-1/2"]
[TimeControl "15 minutes + 5 seconds per move from move one (Round 1 - 4) / 90 minutes + 30 seconds per move from move one (Round 5 - 8)"]
[WhiteTitle "CM"]
[WhiteElo "1937"]
[BlackElo "1689"]

1. e4 {[%clk 00:15:06]} {[%emt 00:00:04]} c6 {[%clk 00:15:09]} {[%emt
00:00:02]} 2. d4 {[%clk 00:15:00]} {[%emt 00:00:11]} d5 {[%clk 00:15:13]}
{[%emt 00:00:01]} 3. f3 {[%clk 00:14:56]} {[%emt 00:00:08]} dxe4 {[%clk
00:15:16]} {[%emt 00:00:03]} 4. fxe4 {[%clk 00:15:00]} {[%emt 00:00:01]} e5
{[%clk 00:15:19]} {[%emt 00:00:01]} 5. Nf3 {[%clk 00:15:03]} {[%emt 00:00:02]}
Bg4 {[%clk 00:15:22]} {[%emt 00:00:02]} 6. Bc4 {[%clk 00:14:23]} {[%emt
00:00:45]} Nd7 {[%clk 00:15:21]} {[%emt 00:00:06]} 7. O-O {[%clk 00:14:12]}
{[%emt 00:00:16]} Ngf6 {[%clk 00:14:59]} {[%emt 00:00:26]} 8. Kh1 {[%clk
00:13:16]} {[%emt 00:01:03]} Bd6 {[%clk 00:13:43]} {[%emt 00:01:20]} 9. Qe1
{[%clk 00:12:42]} {[%emt 00:00:40]} Bxf3 {[%clk 00:13:30]} {[%emt 00:00:17]} 10.
Rxf3 {[%clk 00:12:09]} {[%emt 00:00:38]} O-O {[%clk 00:13:13]} {[%emt
00:00:22]} 11. Bg5 {[%clk 00:11:29]} {[%emt 00:00:45]} exd4 {[%clk 00:10:33]}
{[%emt 00:02:45]} 12. Nd2 {[%clk 00:11:16]} {[%emt 00:00:19]} Re8 {[%clk
00:10:27]} {[%emt 00:00:10]} 13. Qh4 {[%clk 00:11:19]} {[%emt 00:00:02]} Be7
{[%clk 00:09:54]} {[%emt 00:00:38]} 14. Raf1 {[%clk 00:10:23]} {[%emt
00:01:01]} Ne5 {[%clk 00:09:38]} {[%emt 00:00:21]} 15. Rxf6 {[%clk 00:08:45]}
{[%emt 00:01:43]} gxf6 {[%clk 00:08:02]} {[%emt 00:01:42]} 16. Rxf6 {[%clk
00:08:22]} {[%emt 00:00:28]} Nxc4 {[%clk 00:07:04]} {[%emt 00:01:03]} 17. Nxc4
{[%clk 00:06:52]} {[%emt 00:01:34]} Bf8 {[%clk 00:05:37]} {[%emt 00:01:32]} 18.
Rf5 {[%clk 00:03:16]} {[%emt 00:03:42]} Be7 {[%clk 00:04:52]} {[%emt 00:00:49]}
19. Qh5 {[%clk 00:01:37]} {[%emt 00:01:45]} Bxg5 {[%clk 00:04:31]} {[%emt
00:00:25]} 20. Rxg5+ {[%clk 00:01:29]} {[%emt 00:00:13]} Kh8 {[%clk 00:04:18]}
{[%emt 00:00:19]} 21. Ne5 {[%clk 00:01:31]} {[%emt 00:00:03]} Rxe5 {[%clk
00:04:05]} {[%emt 00:00:18]} 22. Rxe5 {[%clk 00:01:35]} {[%emt 00:00:01]} Qf6
{[%clk 00:04:09]} {[%emt 00:00:01]} 23. Rf5 {[%clk 00:01:34]} {[%emt 00:00:06]}
Qg6 {[%emt 00:00:02]} 24. Qf3 Re8 {[%clk 00:03:56]} {[%emt 00:00:21]} 25. e5
{[%clk 00:01:34]} {[%emt 00:00:09]} Qe6 {[%clk 00:02:47]} {[%emt 00:01:14]} 26.
a3 {[%clk 00:01:10]} {[%emt 00:00:29]} Qd5 {[%clk 00:02:28]} {[%emt 00:00:24]}
27. Qxd5 {[%emt 00:00:25]} cxd5 28. g4 {[%clk 00:00:42]} {[%emt 00:00:13]} Rc8
{[%clk 00:02:30]} {[%emt 00:00:08]} 29. Rxf7 {[%clk 00:00:41]} {[%emt
00:00:06]} Rxc2 {[%clk 00:02:14]} {[%emt 00:00:21]} 30. Rxb7 {[%clk 00:00:40]}
{[%emt 00:00:06]} d3 {[%clk 00:02:16]} {[%emt 00:00:04]} 31. Rb8+ {[%clk
00:00:38]} {[%emt 00:00:06]} Kg7 {[%clk 00:02:17]} {[%emt 00:00:04]} 32. Rb7+
{[%clk 00:00:41]} {[%emt 00:00:03]} Kg6 {[%clk 00:02:15]} {[%emt 00:00:08]} 33.
Rd7 {[%clk 00:00:10]} {[%emt 00:00:36]} d2 {[%clk 00:02:15]} {[%emt 00:00:04]}
34. Rxd5 {[%clk 00:00:10]} {[%emt 00:00:05]} d1=Q+ {[%clk 00:02:16]} {[%emt
00:00:04]} 35. Rxd1 {[%clk 00:00:13]} {[%emt 00:00:01]} Re2 {[%clk 00:02:10]}
{[%emt 00:00:11]} 36. Rd5 {[%clk 00:00:14]} {[%emt 00:00:05]} Kg5 {[%clk
00:02:10]} {[%emt 00:00:05]} 37. h3 {[%clk 00:00:12]} {[%emt 00:00:07]} Kf4
{[%clk 00:02:11]} {[%emt 00:00:04]} 38. Kg1 {[%clk 00:00:16]} {[%emt 00:00:01]}
Kg3 {[%clk 00:02:09]} {[%emt 00:00:07]} 39. Kf1 {[%clk 00:00:20]} {[%emt
00:00:02]} Rxb2 {[%clk 00:02:10]} {[%emt 00:00:03]} 40. Rd3+ {[%clk 00:00:20]}
{[%emt 00:00:05]} Kf4 {[%clk 00:02:12]} {[%emt 00:00:03]} 41. e6 {[%clk
00:00:18]} {[%emt 00:00:07]} Rb8 {[%clk 00:02:15]} {[%emt 00:00:02]} 42. Rd7
{[%clk 00:00:18]} {[%emt 00:00:05]} Re8 {[%clk 00:01:59]} {[%emt 00:00:21]} 43.
Rxa7 {[%clk 00:00:19]} {[%emt 00:00:04]} Rxe6 {[%clk 00:02:02]} {[%emt
00:00:02]} 44. Rxh7 {[%clk 00:00:22]} {[%emt 00:00:02]} Ra6 {[%clk 00:02:06]}
{[%emt 00:00:01]} 45. Rf7+ {[%clk 00:00:21]} {[%emt 00:00:05]} Kg5 {[%clk
00:02:09]} {[%emt 00:00:02]} 46. Rf3 {[%clk 00:00:22]} {[%emt 00:00:03]} Kh4
{[%clk 00:02:12]} {[%emt 00:00:02]} 47. Kg2 {[%clk 00:00:18]} {[%emt 00:00:10]}
Kg5 {[%clk 00:02:15]} {[%emt 00:00:01]} 48. Kg3 {[%clk 00:00:19]} {[%emt
00:00:04]} Ra4 {[%clk 00:02:18]} {[%emt 00:00:02]} 49. h4+ {[%clk 00:00:22]}
{[%emt 00:00:02]} Kg6 {[%clk 00:02:22]} 50. h5+ {[%clk 00:00:19]} {[%emt
00:00:09]} Kg7 {[%clk 00:02:21]} {[%emt 00:00:07]} 51. Kh4 {[%clk 00:00:21]}
{[%emt 00:00:02]} Kh6 {[%clk 00:02:24]} {[%emt 00:00:02]} 52. Rb3 {[%clk
00:00:19]} {[%emt 00:00:07]} Kg7 {[%clk 00:02:24]} {[%emt 00:00:05]} 53. Kg5
{[%clk 00:00:14]} {[%emt 00:00:10]} Ra5+ {[%clk 00:02:28]} {[%emt 00:00:02]} 54.
Kh4 {[%clk 00:00:18]} Ra4 {[%clk 00:02:32]} {[%emt 00:00:01]} 55. Rf3 {[%clk
00:00:16]} {[%emt 00:00:07]} Kh6 {[%clk 00:02:30]} {[%emt 00:00:07]} 56. Re3
{[%clk 00:00:14]} {[%emt 00:00:07]} Kg7 {[%clk 00:02:32]} {[%emt 00:00:02]} 57.
Rf3 {[%clk 00:00:14]} {[%emt 00:00:05]} Kh6 {[%clk 00:02:35]} {[%emt 00:00:02]}
58. Rc3 {[%clk 00:00:17]} {[%emt 00:00:02]} Kg7 {[%clk 00:02:36]} {[%emt
00:00:04]} 59. Rf3 {[%clk 00:00:15]} {[%emt 00:00:07]} 1/2-1/2

[ePGN "0.1;DGT LiveChess/2.2.6"]